[Event "Late-Titled-Tuesday-Blitz-October-10-2023"]
[Site "Chess.com"]
[Date "2023.10.10"]
[Round "10"]
[White "ExchangeAB"]
[Black "NelsonLinda"]
[Result "1-0"]
[WhiteElo "2507"]
[BlackElo "2576"]
[TimeControl "180+1"]
[EndTime "15:51:57 PDT"]
[Termination "ExchangeAB won by resignation"]

1. d4 {[%clk 0:03:00.9]} 1... Nf6 {[%clk 0:03:00]} 2. Nc3 {[%clk 0:03:00.8]}
2... d6 {[%clk 0:02:47.5]} 3. e4 {[%clk 0:02:59]} 3... g6 {[%clk 0:02:48]} 4.
Be2 {[%clk 0:02:58.9]} 4... Bg7 {[%clk 0:02:47.6]} 5. h4 {[%clk 0:02:59.5]} 5...
e5 {[%clk 0:02:24.9]} 6. dxe5 {[%clk 0:02:57.3]} 6... dxe5 {[%clk 0:02:25.8]} 7.
Qxd8+ {[%clk 0:02:56.6]} 7... Kxd8 {[%clk 0:02:26.7]} 8. Bg5 {[%clk 0:02:54.6]}
8... c6 {[%clk 0:02:23.2]} 9. h5 {[%clk 0:02:45.6]} 9... h6 {[%clk 0:02:17.9]}
10. Be3 {[%clk 0:02:45.1]} 10... Nxh5 {[%clk 0:01:46.3]} 11. Bxh5 {[%clk
0:02:44.3]} 11... gxh5 {[%clk 0:01:47.2]} 12. Rxh5 {[%clk 0:02:42.3]} 12... Bg4
{[%clk 0:01:47.6]} 13. Rh1 {[%clk 0:02:41]} 13... h5 {[%clk 0:01:42.7]} 14. f3
{[%clk 0:02:41.2]} 14... Be6 {[%clk 0:01:41.7]} 15. O-O-O+ {[%clk 0:02:39.3]}
15... Kc7 {[%clk 0:01:41.4]} 16. Nh3 {[%clk 0:02:37.5]} 16... f6 {[%clk
0:01:25.8]} 17. Nf2 {[%clk 0:02:35.4]} 17... h4 {[%clk 0:01:17.5]} 18. Nd3
{[%clk 0:02:30.6]} 18... Nd7 {[%clk 0:01:16.7]} 19. f4 {[%clk 0:02:25.5]} 19...
Rag8 {[%clk 0:01:14]} 20. f5 {[%clk 0:02:25]} 20... Bf7 {[%clk 0:01:13.4]} 21.
Rh2 {[%clk 0:02:10.5]} 21... Bh6 {[%clk 0:01:11.3]} 22. Bxh6 {[%clk 0:02:06.9]}
22... Rxh6 {[%clk 0:01:12.2]} 23. Rdh1 {[%clk 0:02:07.1]} 23... Rgh8 {[%clk
0:01:08]} 24. Kd2 {[%clk 0:02:02.3]} 24... Kd8 {[%clk 0:01:06.5]} 25. b3 {[%clk
0:02:00.1]} 25... Ke7 {[%clk 0:01:06.2]} 26. Ne1 {[%clk 0:01:59]} 26... Rh5
{[%clk 0:00:45.2]} 27. Nf3 {[%clk 0:01:56.7]} 27... Rg8 {[%clk 0:00:45]} 28. Ke3
{[%clk 0:01:48.8]} 28... Rg4 {[%clk 0:00:32]} 29. Rxh4 {[%clk 0:01:40.7]} 29...
Rhxh4 {[%clk 0:00:29]} 30. Nxh4 {[%clk 0:01:38.6]} 30... Nc5 {[%clk 0:00:26.7]}
31. Rh3 {[%clk 0:01:31]} 31... b5 {[%clk 0:00:22.2]} 32. a3 {[%clk 0:01:22.5]}
32... a5 {[%clk 0:00:22.1]} 33. b4 {[%clk 0:01:22.6]} 33... axb4 {[%clk
0:00:21.9]} 34. axb4 {[%clk 0:01:23.5]} 34... Na6 {[%clk 0:00:22.2]} 35. Nf3
{[%clk 0:00:34.2]} 35... Rxg2 {[%clk 0:00:17.5]} 36. Ne1 {[%clk 0:00:33.3]}
36... Rg8 {[%clk 0:00:11.4]} 37. Nd3 {[%clk 0:00:33.5]} 37... Nb8 {[%clk
0:00:08.9]} 38. Nc5 {[%clk 0:00:29.8]} 38... Nd7 {[%clk 0:00:08.8]} 39. Nxd7
{[%clk 0:00:29.9]} 39... Kxd7 {[%clk 0:00:09.7]} 40. Ne2 {[%clk 0:00:29.8]}
40... Ke7 {[%clk 0:00:09.4]} 41. Rg3 {[%clk 0:00:29.4]} 41... Ra8 {[%clk
0:00:09]} 42. Kd2 {[%clk 0:00:29.2]} 42... Ra2 {[%clk 0:00:09.1]} 43. Rc3 {[%clk
0:00:27.7]} 43... Bc4 {[%clk 0:00:08]} 44. Nc1 {[%clk 0:00:27.8]} 44... Ra1
{[%clk 0:00:08]} 45. Rh3 {[%clk 0:00:26.1]} 45... Rb1 {[%clk 0:00:08.5]} 46.
Rh7+ {[%clk 0:00:24.4]} 46... Kd6 {[%clk 0:00:07.5]} 47. Rh6 {[%clk 0:00:24]}
47... Ke7 {[%clk 0:00:05]} 48. Rh7+ {[%clk 0:00:24.4]} 48... Ke8 {[%clk
0:00:03.7]} 49. Rc7 {[%clk 0:00:23.3]} 49... Rxb4 {[%clk 0:00:03.3]} 50. Rxc6
{[%clk 0:00:23.8]} 50... Kd7 {[%clk 0:00:02.3]} 51. Rxf6 {[%clk 0:00:23.7]}
51... Ke7 {[%clk 0:00:02.1]} 52. Rb6 {[%clk 0:00:22.7]} 52... Bf7 {[%clk
0:00:02.4]} 53. Ke3 {[%clk 0:00:20]} 53... Rc4 {[%clk 0:00:02.2]} 54. Rxb5
{[%clk 0:00:18.6]} 54... Rxc2 {[%clk 0:00:02]} 55. Nd3 {[%clk 0:00:18.7]} 55...
Bc4 {[%clk 0:00:01.3]} 56. Rxe5+ {[%clk 0:00:18.8]} 56... Kf6 {[%clk 0:00:01.9]}
57. Re8 {[%clk 0:00:16.3]} 57... Rc3 {[%clk 0:00:01.9]} 58. Rd8 {[%clk
0:00:16.7]} 58... Bxd3 {[%clk 0:00:02]} 59. Rxd3 {[%clk 0:00:16.9]} 59... Rc1
{[%clk 0:00:02.6]} 60. Rd6+ {[%clk 0:00:16.8]} 60... Ke7 {[%clk 0:00:03.1]} 61.
Ra6 {[%clk 0:00:16.8]} 61... Rc5 {[%clk 0:00:03.4]} 62. Kf4 {[%clk 0:00:16.8]}
62... Rb5 {[%clk 0:00:03.5]} 63. f6+ {[%clk 0:00:15.8]} 63... Kf7 {[%clk
0:00:03.7]} 64. e5 {[%clk 0:00:16]} 64... Rb1 {[%clk 0:00:03.9]} 65. Ra7+ {[%clk
0:00:15]} 65... Kf8 {[%clk 0:00:03.9]} 66. Kf5 {[%clk 0:00:14.9]} 66... Rb6
{[%clk 0:00:03.2]} 67. Kg6 {[%clk 0:00:14.8]} 67... Rb8 {[%clk 0:00:02.6]} 68.
Rh7 {[%clk 0:00:14.4]} 68... Kg8 {[%clk 0:00:02.8]} 69. f7+ {[%clk 0:00:14.7]}
69... Kf8 {[%clk 0:00:03.3]} 70. Rh8+ {[%clk 0:00:15.4]} 70... Ke7 {[%clk
0:00:04]} 71. Rxb8 {[%clk 0:00:15.7]} 71... Ke6 {[%clk 0:00:04.9]} 1-0

[Event "Late-Titled-Tuesday-Blitz-October-10-2023"]
[Site "Chess.com"]
[Date "2023.10.10"]
[Round "10"]
[White "wild3000"]
[Black "Mariia89"]
[Result "1-0"]
[WhiteElo "2318"]
[BlackElo "2079"]
[TimeControl "180+1"]
[EndTime "15:52:00 PDT"]
[Termination "wild3000 won on time"]

1. a3 {[%clk 0:02:34.3]} 1... c5 {[%clk 0:03:00]} 2. e3 {[%clk 0:02:30.2]} 2...
Nc6 {[%clk 0:03:00.5]} 3. Bb5 {[%clk 0:02:22.1]} 3... g6 {[%clk 0:02:59.7]} 4.
h4 {[%clk 0:02:21.5]} 4... h5 {[%clk 0:02:58.3]} 5. d4 {[%clk 0:02:19.4]} 5...
cxd4 {[%clk 0:02:58.2]} 6. exd4 {[%clk 0:02:19.5]} 6... Bg7 {[%clk 0:02:58.3]}
7. d5 {[%clk 0:02:19.3]} 7... Ne5 {[%clk 0:02:58.1]} 8. Nc3 {[%clk 0:02:16.8]}
8... a6 {[%clk 0:02:56.6]} 9. Be2 {[%clk 0:02:15.8]} 9... d6 {[%clk 0:02:55.4]}
10. Nf3 {[%clk 0:02:14.9]} 10... Nxf3+ {[%clk 0:02:43.5]} 11. Bxf3 {[%clk
0:02:14.7]} 11... Nf6 {[%clk 0:02:42]} 12. O-O {[%clk 0:02:11.3]} 12... Bg4
{[%clk 0:02:42]} 13. Bg5 {[%clk 0:02:05.1]} 13... Qd7 {[%clk 0:02:41.7]} 14. Re1
{[%clk 0:02:03.2]} 14... O-O {[%clk 0:02:41.3]} 15. Bxg4 {[%clk 0:01:58.1]}
15... hxg4 {[%clk 0:02:41.3]} 16. Rb1 {[%clk 0:01:46.5]} 16... Rfe8 {[%clk
0:02:34]} 17. Ne4 {[%clk 0:01:35.5]} 17... Nh5 {[%clk 0:02:26.2]} 18. c4 {[%clk
0:01:28.6]} 18... Rac8 {[%clk 0:02:13.3]} 19. b3 {[%clk 0:01:27.8]} 19... Qf5
{[%clk 0:02:07.4]} 20. Ng3 {[%clk 0:01:22.2]} 20... Nxg3 {[%clk 0:01:56.2]} 21.
fxg3 {[%clk 0:01:23.1]} 21... Qd7 {[%clk 0:01:55.8]} 22. a4 {[%clk 0:01:19]}
22... Be5 {[%clk 0:01:52.9]} 23. Qd3 {[%clk 0:01:17.3]} 23... Kg7 {[%clk
0:01:37.9]} 24. Re4 {[%clk 0:01:07.4]} 24... f5 {[%clk 0:01:31.4]} 25. Rxe5
{[%clk 0:01:07.1]} 25... dxe5 {[%clk 0:01:30.1]} 26. Re1 {[%clk 0:01:02.9]}
26... Qd6 {[%clk 0:01:27.2]} 27. Qc3 {[%clk 0:00:50.2]} 27... Kf7 {[%clk
0:00:30.3]} 28. Rxe5 {[%clk 0:00:47.1]} 28... e6 {[%clk 0:00:30.4]} 29. Qd2
{[%clk 0:00:28.5]} 29... exd5 {[%clk 0:00:24.6]} 30. Rxd5 {[%clk 0:00:28.2]}
30... Qb6+ {[%clk 0:00:12.4]} 31. Kh2 {[%clk 0:00:26.4]} 31... Rc7 {[%clk
0:00:05.3]} 32. b4 {[%clk 0:00:23]} 32... Qc6 {[%clk 0:00:03.3]} 33. c5 {[%clk
0:00:22.2]} 33... b6 {[%clk 0:00:03.6]} 34. Rd6 {[%clk 0:00:22.3]} 34... Qb7
{[%clk 0:00:03.6]} 35. Rxb6 {[%clk 0:00:20.4]} 35... Qe4 {[%clk 0:00:04]} 36.
Rd6 {[%clk 0:00:18.7]} 36... a5 {[%clk 0:00:03.7]} 37. Rf6+ {[%clk 0:00:17.9]}
37... Kg7 {[%clk 0:00:04]} 38. Qd6 {[%clk 0:00:16.4]} 38... Rc6 {[%clk
0:00:03.9]} 39. Rxg6+ {[%clk 0:00:16.3]} 39... Kh7 {[%clk 0:00:04.4]} 40. Rh6+
{[%clk 0:00:16.1]} 40... Kg8 {[%clk 0:00:05.3]} 41. Qd7 {[%clk 0:00:14.8]} 41...
Re7 {[%clk 0:00:03.4]} 42. Bxe7 {[%clk 0:00:12.3]} 42... Rxh6 {[%clk 0:00:03.7]}
43. Bg5 {[%clk 0:00:11.4]} 43... Rh7 {[%clk 0:00:03.8]} 44. Qd8+ {[%clk
0:00:09.7]} 44... Kf7 {[%clk 0:00:04.1]} 45. Qf6+ {[%clk 0:00:09.5]} 45... Kg8
{[%clk 0:00:03.8]} 46. Qg6+ {[%clk 0:00:08.1]} 46... Rg7 {[%clk 0:00:04.3]} 47.
Qf6 {[%clk 0:00:07]} 47... Rf7 {[%clk 0:00:04.4]} 48. Qd8+ {[%clk 0:00:05.8]}
48... Rf8 {[%clk 0:00:03.7]} 49. Qxa5 {[%clk 0:00:05.2]} 49... Qe2 {[%clk
0:00:02.8]} 50. Qb5 {[%clk 0:00:04.3]} 50... Qe6 {[%clk 0:00:02.2]} 51. c6
{[%clk 0:00:04.1]} 51... Rf7 {[%clk 0:00:02.8]} 52. Qc5 {[%clk 0:00:03.3]} 52...
Qc8 {[%clk 0:00:03.2]} 53. b5 {[%clk 0:00:03.4]} 53... f4 {[%clk 0:00:02.1]} 54.
Bxf4 {[%clk 0:00:02.9]} 54... Rf5 {[%clk 0:00:01]} 55. Qc4+ {[%clk 0:00:02]}
55... Kh7 {[%clk 0:00:01.5]} 56. Qe4 {[%clk 0:00:01.1]} 1-0

[Event "Late-Titled-Tuesday-Blitz-October-10-2023"]
[Site "Chess.com"]
[Date "2023.10.10"]
[Round "10"]
[White "sergoy"]
[Black "ozates"]
[Result "1-0"]
[WhiteElo "2973"]
[BlackElo "2781"]
[TimeControl "180+1"]
[EndTime "15:52:02 PDT"]
[Termination "sergoy won by resignation"]

1. d4 {[%clk 0:02:59.8]} 1... Nf6 {[%clk 0:02:59.3]} 2. c4 {[%clk 0:03:00.2]}
2... e6 {[%clk 0:02:59.1]} 3. Nf3 {[%clk 0:03:00.5]} 3... d5 {[%clk 0:02:59.3]}
4. Nc3 {[%clk 0:03:00.8]} 4... c5 {[%clk 0:02:58.8]} 5. e3 {[%clk 0:02:59.3]}
5... Nc6 {[%clk 0:02:46.6]} 6. cxd5 {[%clk 0:02:55.7]} 6... Nxd5 {[%clk
0:02:46.7]} 7. Bd3 {[%clk 0:02:55.7]} 7... Be7 {[%clk 0:02:46]} 8. O-O {[%clk
0:02:55.6]} 8... O-O {[%clk 0:02:46.6]} 9. Qe2 {[%clk 0:02:55.6]} 9... b6 {[%clk
0:02:27.6]} 10. Rd1 {[%clk 0:02:55.2]} 10... cxd4 {[%clk 0:02:25.2]} 11. exd4
{[%clk 0:02:54.7]} 11... Bb7 {[%clk 0:02:12.2]} 12. h4 {[%clk 0:02:37.7]} 12...
Rc8 {[%clk 0:01:53.6]} 13. h5 {[%clk 0:02:33]} 13... Bf6 {[%clk 0:01:46.5]} 14.
Qe4 {[%clk 0:02:30.4]} 14... g6 {[%clk 0:01:46.2]} 15. Bh6 {[%clk 0:02:14.9]}
15... Re8 {[%clk 0:01:45.4]} 16. Qg4 {[%clk 0:02:12.5]} 16... Nce7 {[%clk
0:01:29.1]} 17. Ne4 {[%clk 0:02:09.3]} 17... Nf5 {[%clk 0:01:26.7]} 18. Nxf6+
{[%clk 0:02:02.1]} 18... Nxf6 {[%clk 0:01:25.8]} 19. Qh3 {[%clk 0:01:44.6]}
19... Nxh6 {[%clk 0:01:01.6]} 20. hxg6 {[%clk 0:01:43.1]} 20... Nfg4 {[%clk
0:00:26]} 21. gxf7+ {[%clk 0:01:32.2]} 21... Kxf7 {[%clk 0:00:26.9]} 22. Ne5+
{[%clk 0:01:28.4]} 22... Nxe5 {[%clk 0:00:24]} 23. Qxh6 {[%clk 0:01:28.9]} 23...
Nxd3 {[%clk 0:00:20.2]} 24. Qxh7+ {[%clk 0:01:28.6]} 24... Kf8 {[%clk 0:00:15]}
25. Rxd3 {[%clk 0:01:29.1]} 25... Rc7 {[%clk 0:00:15]} 26. Qh8+ {[%clk
0:01:20.9]} 26... Ke7 {[%clk 0:00:13.7]} 27. Qe5 {[%clk 0:01:11.9]} 27... Bd5
{[%clk 0:00:08.8]} 28. Rg3 {[%clk 0:01:10.6]} 28... Kd7 {[%clk 0:00:07]} 29. a4
{[%clk 0:01:10.5]} 29... Kc8 {[%clk 0:00:07.2]} 30. a5 {[%clk 0:01:11]} 30... b5
{[%clk 0:00:05.5]} 31. a6 {[%clk 0:01:10.6]} 31... Rg8 {[%clk 0:00:05]} 32. Re1
{[%clk 0:01:03.5]} 32... Rxg3 {[%clk 0:00:05.1]} 33. Qxg3 {[%clk 0:01:04.2]}
33... Qf8 {[%clk 0:00:05]} 34. f3 {[%clk 0:00:30.6]} 34... Qg7 {[%clk
0:00:04.2]} 35. Qf4 {[%clk 0:00:24.1]} 35... Rc2 {[%clk 0:00:03.2]} 36. g3
{[%clk 0:00:19.4]} 36... Qh7 {[%clk 0:00:02.3]} 37. g4 {[%clk 0:00:15.2]} 37...
Qh3 {[%clk 0:00:02.1]} 38. Qf8+ {[%clk 0:00:15.3]} 38... Kd7 {[%clk 0:00:02.3]}
39. Qf7+ {[%clk 0:00:15.4]} 39... Kd8 {[%clk 0:00:02.4]} 40. Qf8+ {[%clk
0:00:15.7]} 40... Kd7 {[%clk 0:00:02.9]} 41. Qf7+ {[%clk 0:00:16.1]} 41... Kd8
{[%clk 0:00:03.2]} 42. Qf8+ {[%clk 0:00:13]} 42... Kc7 {[%clk 0:00:03.4]} 43.
Qe7+ {[%clk 0:00:10.7]} 43... Kb6 {[%clk 0:00:02.4]} 44. Qd8+ {[%clk 0:00:11]}
44... Rc7 {[%clk 0:00:02.6]} 45. Qd6+ {[%clk 0:00:11.2]} 45... Rc6 {[%clk
0:00:02.2]} 46. Qd8+ {[%clk 0:00:11.5]} 46... Rc7 {[%clk 0:00:02.1]} 47. Qd6+
{[%clk 0:00:11.8]} 47... Rc6 {[%clk 0:00:02.6]} 48. Qb8+ {[%clk 0:00:04.8]}
48... Ka5 {[%clk 0:00:03]} 49. Ra1+ {[%clk 0:00:05]} 49... Kb4 {[%clk
0:00:03.5]} 50. Qf8+ {[%clk 0:00:04.8]} 50... Kb3 {[%clk 0:00:03.9]} 51. Qf4
{[%clk 0:00:05]} 51... Qxf3 {[%clk 0:00:03.4]} 52. Ra3+ {[%clk 0:00:04.1]} 52...
Kxb2 {[%clk 0:00:03]} 53. Rxf3 {[%clk 0:00:05]} 53... Bxf3 {[%clk 0:00:02.8]}
54. Qxf3 {[%clk 0:00:05.5]} 54... Rc1+ {[%clk 0:00:03.7]} 55. Kg2 {[%clk
0:00:02.6]} 55... Rc2+ {[%clk 0:00:04.2]} 56. Kg1 {[%clk 0:00:03.3]} 56... Rc1+
{[%clk 0:00:04.7]} 57. Kg2 {[%clk 0:00:03.8]} 57... Rc2+ {[%clk 0:00:05.4]} 58.
Kg3 {[%clk 0:00:04.2]} 58... Rc3 {[%clk 0:00:05.9]} 59. g5 {[%clk 0:00:04.8]}
59... b4 {[%clk 0:00:05.6]} 60. g6 {[%clk 0:00:05.3]} 60... b3 {[%clk
0:00:06.1]} 61. g7 {[%clk 0:00:06]} 61... Rxf3+ {[%clk 0:00:06.4]} 62. Kxf3
{[%clk 0:00:06]} 62... Ka1 {[%clk 0:00:07.3]} 63. g8=Q {[%clk 0:00:04.7]} 63...
b2 {[%clk 0:00:08.2]} 64. Qxe6 {[%clk 0:00:05.1]} 64... b1=Q {[%clk 0:00:09]}
65. Qe5 {[%clk 0:00:03]} 65... Qd3+ {[%clk 0:00:09.2]} 66. Kf4 {[%clk
0:00:03.5]} 66... Qxa6 {[%clk 0:00:10]} 67. d5+ {[%clk 0:00:04]} 67... Ka2
{[%clk 0:00:09.2]} 68. d6 {[%clk 0:00:04.6]} 68... Qf1+ {[%clk 0:00:09.6]} 69.
Kg5 {[%clk 0:00:04.6]} 69... Qg2+ {[%clk 0:00:09.8]} 70. Kf6 {[%clk 0:00:05.3]}
70... Qf3+ {[%clk 0:00:09.7]} 71. Ke7 {[%clk 0:00:05.6]} 71... Qb7+ {[%clk
0:00:08.1]} 72. d7 {[%clk 0:00:06.2]} 72... Qb4+ {[%clk 0:00:08.4]} 73. Ke8
{[%clk 0:00:04.7]} 1-0

[Event "Late-Titled-Tuesday-Blitz-October-10-2023"]
[Site "Chess.com"]
[Date "2023.10.10"]
[Round "10"]
[White "DIMONBANAN"]
[Black "Atanejhad"]
[Result "1/2-1/2"]
[WhiteElo "2499"]
[BlackElo "2396"]
[TimeControl "180+1"]
[EndTime "15:52:21 PDT"]
[Termination "Game drawn by repetition"]

1. e4 {[%clk 0:02:55.6]} 1... e5 {[%clk 0:02:57.2]} 2. Nf3 {[%clk 0:02:55.7]}
2... Nc6 {[%clk 0:02:56.6]} 3. d4 {[%clk 0:02:56.4]} 3... exd4 {[%clk
0:02:55.8]} 4. Nxd4 {[%clk 0:02:57.3]} 4... Nf6 {[%clk 0:02:55.5]} 5. Nc3 {[%clk
0:02:57.9]} 5... Bb4 {[%clk 0:02:52.7]} 6. Nxc6 {[%clk 0:02:57.8]} 6... bxc6
{[%clk 0:02:53]} 7. Bd3 {[%clk 0:02:58.5]} 7... d5 {[%clk 0:02:52.5]} 8. exd5
{[%clk 0:02:59.4]} 8... cxd5 {[%clk 0:02:52.7]} 9. O-O {[%clk 0:03:00]} 9... O-O
{[%clk 0:02:51.8]} 10. Bg5 {[%clk 0:02:59.7]} 10... c6 {[%clk 0:02:52.3]} 11.
Qf3 {[%clk 0:02:59.4]} 11... Be6 {[%clk 0:02:52.3]} 12. Ne2 {[%clk 0:02:57.5]}
12... h6 {[%clk 0:02:50.5]} 13. Bxf6 {[%clk 0:02:57.4]} 13... Qxf6 {[%clk
0:02:51.1]} 14. Qxf6 {[%clk 0:02:56.9]} 14... gxf6 {[%clk 0:02:51.5]} 15. Nd4
{[%clk 0:02:50.5]} 15... c5 {[%clk 0:02:47.8]} 16. Nc6 {[%clk 0:02:42.7]} 16...
Kg7 {[%clk 0:02:18.9]} 17. c3 {[%clk 0:02:35.5]} 17... Rfc8 {[%clk 0:02:15.6]}
18. Nxb4 {[%clk 0:02:29.5]} 18... cxb4 {[%clk 0:02:13.9]} 19. cxb4 {[%clk
0:02:30.4]} 19... f5 {[%clk 0:02:00.4]} 20. Rac1 {[%clk 0:02:27.6]} 20... Kf6
{[%clk 0:01:59.8]} 21. Ba6 {[%clk 0:02:11.7]} 21... Rg8 {[%clk 0:01:54.3]} 22.
Rc7 {[%clk 0:02:07.1]} 22... f4 {[%clk 0:01:52.3]} 23. g3 {[%clk 0:02:06.1]}
23... fxg3 {[%clk 0:01:48.4]} 24. fxg3+ {[%clk 0:01:56.9]} 24... Ke5 {[%clk
0:01:48.5]} 25. Kf2 {[%clk 0:01:48.4]} 25... h5 {[%clk 0:01:47.2]} 26. a4 {[%clk
0:01:36.2]} 26... h4 {[%clk 0:01:46.2]} 27. a5 {[%clk 0:01:32.7]} 27... hxg3+
{[%clk 0:01:42.4]} 28. hxg3 {[%clk 0:01:32.9]} 28... Rg4 {[%clk 0:01:42.6]} 29.
b5 {[%clk 0:01:31.6]} 29... Rb4 {[%clk 0:01:38.9]} 30. Re1+ {[%clk 0:01:31.5]}
30... Kf6 {[%clk 0:01:33.6]} 31. Re2 {[%clk 0:01:29.7]} 31... d4 {[%clk
0:01:27.5]} 32. Rd2 {[%clk 0:01:24.7]} 32... Ke5 {[%clk 0:01:22.2]} 33. Bb7
{[%clk 0:01:16.9]} 33... Rh8 {[%clk 0:01:19]} 34. Bc6 {[%clk 0:01:17.5]} 34...
Rh2+ {[%clk 0:01:16.7]} 35. Ke1 {[%clk 0:01:18.1]} 35... Rxd2 {[%clk 0:01:14.4]}
36. Kxd2 {[%clk 0:01:19]} 36... Rxb2+ {[%clk 0:01:14.3]} 37. Kc1 {[%clk
0:01:19.7]} 37... Ra2 {[%clk 0:01:08.3]} 38. Bf3 {[%clk 0:00:44.4]} 38... Rxa5
{[%clk 0:01:06.8]} 39. Rc5+ {[%clk 0:00:40.4]} 39... Kd6 {[%clk 0:01:06.4]} 40.
Rc6+ {[%clk 0:00:40.8]} 40... Kd7 {[%clk 0:01:01.6]} 41. b6 {[%clk 0:00:41.1]}
41... Ra1+ {[%clk 0:00:51.5]} 42. Kd2 {[%clk 0:00:40.9]} 42... Ra2+ {[%clk
0:00:51.1]} 43. Kc1 {[%clk 0:00:37.2]} 43... axb6 {[%clk 0:00:44.7]} 44. Rxb6
{[%clk 0:00:38.1]} 44... Rf2 {[%clk 0:00:41.2]} 45. Be4 {[%clk 0:00:35.4]} 45...
Re2 {[%clk 0:00:38.5]} 46. Bf3 {[%clk 0:00:26.2]} 46... Re3 {[%clk 0:00:38]} 47.
Ba8 {[%clk 0:00:24.6]} 47... Rxg3 {[%clk 0:00:37.4]} 48. Kd2 {[%clk 0:00:24.5]}
48... Ke7 {[%clk 0:00:33.9]} 49. Rb4 {[%clk 0:00:23.4]} 49... d3 {[%clk
0:00:33.9]} 50. Be4 {[%clk 0:00:22.8]} 50... Kd6 {[%clk 0:00:26]} 51. Bxd3
{[%clk 0:00:22.3]} 51... Kc5 {[%clk 0:00:26.1]} 52. Ra4 {[%clk 0:00:21.5]} 52...
Bd5 {[%clk 0:00:24.5]} 53. Ra5+ {[%clk 0:00:20.6]} 53... Kd4 {[%clk 0:00:24.4]}
54. Ra4+ {[%clk 0:00:21.2]} 54... Ke5 {[%clk 0:00:24.3]} 55. Ra7 {[%clk
0:00:20.4]} 55... Rg2+ {[%clk 0:00:22.6]} 56. Ke3 {[%clk 0:00:20.5]} 56... Rg3+
{[%clk 0:00:22.1]} 57. Ke2 {[%clk 0:00:21]} 57... Rh3 {[%clk 0:00:18.8]} 58. Ra6
{[%clk 0:00:15.2]} 58... Kd4 {[%clk 0:00:18]} 59. Ra4+ {[%clk 0:00:13.5]} 59...
Kc3 {[%clk 0:00:18.1]} 60. Bf5 {[%clk 0:00:11.9]} 60... Rh2+ {[%clk 0:00:16.7]}
61. Ke3 {[%clk 0:00:11.2]} 61... Rh5 {[%clk 0:00:17.3]} 62. Bd7 {[%clk
0:00:06.5]} 62... Re5+ {[%clk 0:00:17.5]} 63. Kf4 {[%clk 0:00:06.5]} 63... Re7
{[%clk 0:00:17.2]} 64. Bf5 {[%clk 0:00:06.1]} 64... Bc4 {[%clk 0:00:17.2]} 65.
Ra8 {[%clk 0:00:05.9]} 65... Kd4 {[%clk 0:00:17.7]} 66. Rd8+ {[%clk 0:00:06.1]}
66... Bd5 {[%clk 0:00:16.9]} 67. Kg5 {[%clk 0:00:05]} 67... Re1 {[%clk 0:00:17]}
68. Kf6 {[%clk 0:00:05.1]} 68... Rf1 {[%clk 0:00:16.9]} 69. Kg5 {[%clk 0:00:05]}
69... Ke5 {[%clk 0:00:16]} 70. Re8+ {[%clk 0:00:04.9]} 70... Be6 {[%clk
0:00:16.3]} 71. Bxe6 {[%clk 0:00:04.7]} 71... fxe6 {[%clk 0:00:14.6]} 72. Kg4
{[%clk 0:00:05.3]} 72... Rf7 {[%clk 0:00:13.6]} 73. Kg3 {[%clk 0:00:03.6]} 73...
Kd5 {[%clk 0:00:14]} 74. Ra8 {[%clk 0:00:02]} 74... e5 {[%clk 0:00:12.9]} 75.
Ra3 {[%clk 0:00:01.3]} 75... e4 {[%clk 0:00:12.3]} 76. Kg2 {[%clk 0:00:02.2]}
76... Kd4 {[%clk 0:00:12.1]} 77. Ra4+ {[%clk 0:00:02.5]} 77... Ke5 {[%clk
0:00:12.2]} 78. Ra5+ {[%clk 0:00:02.5]} 78... Kd4 {[%clk 0:00:12.6]} 79. Ra4+
{[%clk 0:00:02.9]} 79... Kd3 {[%clk 0:00:13.3]} 80. Ra3+ {[%clk 0:00:03.4]}
80... Kc2 {[%clk 0:00:13.4]} 81. Ra2+ {[%clk 0:00:03.1]} 81... Kd3 {[%clk
0:00:12.4]} 82. Ra3+ {[%clk 0:00:03.6]} 82... Kd4 {[%clk 0:00:12.7]} 83. Ra4+
{[%clk 0:00:03.8]} 1/2-1/2

[Event "Late-Titled-Tuesday-Blitz-October-10-2023"]
[Site "Chess.com"]
[Date "2023.10.10"]
[Round "11"]
[White "CraiggoryC"]
[Black "BardArtem"]
[Result "0-1"]
[WhiteElo "2291"]
[BlackElo "2746"]
[TimeControl "180+1"]
[EndTime "15:56:06 PDT"]
[Termination "BardArtem won by resignation"]

1. e4 {[%clk 0:02:55.2]} 1... d5 {[%clk 0:02:59.3]} 2. exd5 {[%clk 0:02:54.3]}
2... Qxd5 {[%clk 0:03:00]} 3. Nc3 {[%clk 0:02:54.6]} 3... Qe5+ {[%clk
0:03:00.4]} 4. Be2 {[%clk 0:02:53.8]} 4... Bg4 {[%clk 0:03:00]} 5. d4 {[%clk
0:02:53.6]} 5... Bxe2 {[%clk 0:03:00.9]} 6. Ngxe2 {[%clk 0:02:54.1]} 6... Qa5
{[%clk 0:03:01.5]} 7. O-O {[%clk 0:02:54.1]} 7... Nf6 {[%clk 0:03:01.9]} 8. Bf4
{[%clk 0:02:42.2]} 8... Nc6 {[%clk 0:03:00.4]} 9. Qd3 {[%clk 0:02:34.3]} 9...
O-O-O {[%clk 0:02:56.5]} 10. Qc4 {[%clk 0:02:18.3]} 10... e6 {[%clk 0:02:55.7]}
11. a3 {[%clk 0:02:16.8]} 11... Qf5 {[%clk 0:02:53.5]} 12. b4 {[%clk 0:02:09.1]}
12... Bd6 {[%clk 0:02:47.8]} 13. Bxd6 {[%clk 0:01:54.8]} 13... Rxd6 {[%clk
0:02:48.7]} 14. Na4 {[%clk 0:01:37.4]} 14... Rhd8 {[%clk 0:02:45.3]} 15. c3
{[%clk 0:01:36.1]} 15... b5 {[%clk 0:02:41.6]} 16. Qc5 {[%clk 0:01:31.6]} 16...
bxa4 {[%clk 0:02:39.4]} 0-1

[Event "Late-Titled-Tuesday-Blitz-October-10-2023"]
[Site "Chess.com"]
[Date "2023.10.10"]
[Round "11"]
[White "OLDTERMINATOR"]
[Black "Elbebiber"]
[Result "0-1"]
[WhiteElo "1603"]
[BlackElo "2145"]
[TimeControl "180+1"]
[EndTime "15:56:23 PDT"]
[Termination "Elbebiber won by resignation"]

1. e4 {[%clk 0:02:45.2]} 1... d5 {[%clk 0:02:59.5]} 2. exd5 {[%clk 0:02:43]}
2... Nf6 {[%clk 0:02:59.8]} 3. d4 {[%clk 0:02:41.5]} 3... Nxd5 {[%clk
0:02:59.7]} 4. c4 {[%clk 0:02:42.1]} 4... Nb6 {[%clk 0:02:59.9]} 5. Nc3 {[%clk
0:02:42.2]} 5... e5 {[%clk 0:02:58.1]} 6. dxe5 {[%clk 0:02:32.5]} 6... Qxd1+
{[%clk 0:02:48.1]} 7. Nxd1 {[%clk 0:02:23.1]} 7... Nc6 {[%clk 0:02:45.7]} 8. Bf4
{[%clk 0:02:10.7]} 8... Be6 {[%clk 0:02:41.3]} 9. b3 {[%clk 0:02:08.1]} 9...
Bb4+ {[%clk 0:02:38.6]} 10. Ke2 {[%clk 0:01:46.5]} 10... Nd4+ {[%clk 0:02:27.2]}
11. Kd3 {[%clk 0:01:46.1]} 11... O-O-O {[%clk 0:02:23.5]} 12. a3 {[%clk
0:01:46.3]} 12... Nxb3+ {[%clk 0:02:08.5]} 13. Kc2 {[%clk 0:01:45.2]} 13...
Nxa1+ {[%clk 0:02:05.9]} 14. Kb2 {[%clk 0:01:42.8]} 14... Rxd1 {[%clk
0:01:57.9]} 0-1